[Event "Titled Tuesday Blitz May 9 Early 2023"]
[White "Wessendorf, Thomas, Dr."]
[Black "cristianserban1"]
[WhiteFideId "4604270"]
[WhiteElo "2280"]
[BlackElo "2462"]
[Result "0-1"]
[Round "02"]
[TimeControl "180+2"]
[Date "2023.05.09"]
[WhiteClock "0:00:00"]
[BlackClock "0:00:09"]

1. e4 {[%clk 0:03:00]}  c6 {[%clk 0:02:59]} 2. d3 {[%clk 0:03:00]}  d5 {[%clk 0:02:58]} 3. Nd2 {[%clk 0:03:00]}  g6 {[%clk 0:02:58]} 4. g3 {[%clk 0:02:59]}  Bg7 {[%clk 0:02:58]} 5. Ngf3 {[%clk 0:03:00]}  Bg4 {[%clk 0:02:57]} 6. Bg2 {[%clk 0:02:57]}  e6 {[%clk 0:02:56]} 7. h3 {[%clk 0:02:58]}  Bxf3 {[%clk 0:02:56]} 8. Qxf3 {[%clk 0:02:57]}  Nd7 {[%clk 0:02:55]} 9. O-O {[%clk 0:02:54]}  Ne7 {[%clk 0:02:54]} 10. Qe2 {[%clk 0:02:49]}  O-O {[%clk 0:02:53]} 11. Nf3 {[%clk 0:02:36]}  a5 {[%clk 0:02:47]} 12. d4 {[%clk 0:02:26]}  dxe4 {[%clk 0:02:40]} 13. Qxe4 {[%clk 0:02:25]}  a4 {[%clk 0:02:41]} 14. a3 {[%clk 0:02:24]}  Nf5 {[%clk 0:02:36]} 15. c3 {[%clk 0:02:22]}  Nd6 {[%clk 0:02:31]} 16. Qc2 {[%clk 0:02:14]}  Qa5 {[%clk 0:02:24]} 17. Bg5 {[%clk 0:02:05]}  Rfe8 {[%clk 0:02:22]} 18. Rfe1 {[%clk 0:02:04]}  Nc4 {[%clk 0:02:15]} 19. Rad1 {[%clk 0:01:59]}  Qb5 {[%clk 0:02:14]} 20. Bc1 {[%clk 0:01:59]}  Rad8 {[%clk 0:02:11]} 21. h4 {[%clk 0:01:59]}  h6 {[%clk 0:02:07]} 22. Bf1 {[%clk 0:01:59]}  Ndb6 {[%clk 0:02:04]} 23. Ne5 {[%clk 0:01:50]}  Qd5 {[%clk 0:01:55]} 24. Nxc4 {[%clk 0:01:46]}  Nxc4 {[%clk 0:01:55]} 25. Qxa4 {[%clk 0:01:46]}  b5 {[%clk 0:01:53]} 26. Qc2 {[%clk 0:01:45]}  c5 {[%clk 0:00:56]} 27. Bg2 {[%clk 0:01:40]}  Qd6 {[%clk 0:00:56]} 28. Bf4 {[%clk 0:01:36]}  Qb6 {[%clk 0:00:55]} 29. dxc5 {[%clk 0:01:27]}  Qxc5 {[%clk 0:00:56]} 30. Qc1 {[%clk 0:01:18]}  Kh7 {[%clk 0:00:53]} 31. Be4 {[%clk 0:01:08]}  f5 {[%clk 0:00:49]} 32. Bb1 {[%clk 0:01:06]}  e5 {[%clk 0:00:49]} 33. Be3 {[%clk 0:01:02]}  Qc6 {[%clk 0:00:49]} 34. b3 {[%clk 0:00:52]}  Nd6 {[%clk 0:00:46]} 35. b4 {[%clk 0:00:35]}  Nc4 {[%clk 0:00:37]} 36. Bc5 {[%clk 0:00:34]}  e4 {[%clk 0:00:32]} 37. h5 {[%clk 0:00:31]}  Ne5 {[%clk 0:00:29]} 38. Rxd8 {[%clk 0:00:24]}  Rxd8 {[%clk 0:00:29]} 39. Rd1 {[%clk 0:00:22]}  Nf3+ {[%clk 0:00:22]} 40. Kg2 {[%clk 0:00:19]}  e3 {[%clk 0:00:15]} 41. hxg6+ {[%clk 0:00:17]}  Kxg6 {[%clk 0:00:15]} 42. Bxf5+ {[%clk 0:00:14]}  Kxf5 {[%clk 0:00:15]} 43. Qc2+ {[%clk 0:00:13]}  Kg4 {[%clk 0:00:13]} 44. Kf1 {[%clk 0:00:09]}  Nh2+ {[%clk 0:00:11]} 45. Kg1 {[%clk 0:00:07]}  exf2+ {[%clk 0:00:11]} 46. Bxf2 {[%clk 0:00:04]}  Rxd1+ {[%clk 0:00:10]} 47. Qxd1+ {[%clk 0:00:03]}  Nf3+ {[%clk 0:00:11]} 48. Kg2 {[%clk 0:00:03]}  Bxc3 {[%clk 0:00:11]} 49. Bc5 {[%clk 0:00:02]}  Qe4 {[%clk 0:00:10]} 50. Kf2 {[%clk 0:00:02]}  Bd2 {[%clk 0:00:08]} 51. Qe2 {[%clk 0:00:01]}  Qxe2+ {[%clk 0:00:08]} 52. Kxe2 {[%clk 0:00:01]}  Bc1 {[%clk 0:00:09]} 53. Be3 {[%clk 0:00:00]}  Bxa3 {[%clk 0:00:09]} 0-1


[Site "https://www.chess.com"]

[Event "Titled Tuesday Blitz May 9 Early 2023"]
[White "Martic, Ivan"]
[Black "Rodriguez Santiago, Jaime"]
[WhiteFideId "929301"]
[BlackFideId "3100898"]
[WhiteElo "2360"]
[BlackElo "2025"]
[Result "1-0"]
[Round "02"]
[TimeControl "180+2"]
[Date "2023.05.09"]
[WhiteClock "0:00:59"]
[BlackClock "0:00:49"]

1. d4 {[%clk 0:03:00]}  Nf6 {[%clk 0:02:59]} 2. Bg5 {[%clk 0:03:00]}  d5 {[%clk 0:02:58]} 3. Bxf6 {[%clk 0:02:59]}  exf6 {[%clk 0:02:58]} 4. e3 {[%clk 0:02:58]}  f5 {[%clk 0:02:58]} 5. g3 {[%clk 0:02:54]}  c6 {[%clk 0:02:58]} 6. Bg2 {[%clk 0:02:54]}  Bd6 {[%clk 0:02:58]} 7. Nd2 {[%clk 0:02:51]}  Be6 {[%clk 0:02:56]} 8. Ne2 {[%clk 0:02:50]}  Nd7 {[%clk 0:02:54]} 9. b3 {[%clk 0:02:50]}  Qc7 {[%clk 0:02:55]} 10. c4 {[%clk 0:02:50]}  Qb8 {[%clk 0:02:43]} 11. Qc2 {[%clk 0:02:39]}  Nf6 {[%clk 0:02:33]} 12. c5 {[%clk 0:02:37]}  Bc7 {[%clk 0:02:33]} 13. b4 {[%clk 0:02:38]}  O-O {[%clk 0:02:27]} 14. O-O {[%clk 0:02:37]}  h5 {[%clk 0:02:26]} 15. h4 {[%clk 0:02:32]}  Ng4 {[%clk 0:02:24]} 16. a4 {[%clk 0:02:30]}  Re8 {[%clk 0:02:22]} 17. b5 {[%clk 0:02:30]}  Qd8 {[%clk 0:02:13]} 18. Nf3 {[%clk 0:02:26]}  f6 {[%clk 0:01:49]} 19. Nf4 {[%clk 0:02:24]}  Bxf4 {[%clk 0:01:43]} 20. exf4 {[%clk 0:02:25]}  Bf7 {[%clk 0:01:38]} 21. Nd2 {[%clk 0:01:54]}  g6 {[%clk 0:01:36]} 22. Rfe1 {[%clk 0:01:51]}  Qd7 {[%clk 0:01:33]} 23. b6 {[%clk 0:01:45]}  axb6 {[%clk 0:01:29]} 24. cxb6 {[%clk 0:01:46]}  Rxe1+ {[%clk 0:01:27]} 25. Rxe1 {[%clk 0:01:45]}  Qd8 {[%clk 0:01:24]} 26. Qb3 {[%clk 0:01:39]}  Ra6 {[%clk 0:01:23]} 27. Rb1 {[%clk 0:01:36]}  Qa8 {[%clk 0:01:21]} 28. Ra1 {[%clk 0:01:30]}  Qd8 {[%clk 0:01:12]} 29. a5 {[%clk 0:01:29]}  Qe7 {[%clk 0:01:08]} 30. Bf1 {[%clk 0:01:25]}  Ra8 {[%clk 0:01:08]} 31. a6 {[%clk 0:01:15]}  bxa6 {[%clk 0:01:07]} 32. b7 {[%clk 0:01:16]}  Rb8 {[%clk 0:01:08]} 33. Bxa6 {[%clk 0:01:16]}  g5 {[%clk 0:01:03]} 34. fxg5 {[%clk 0:01:11]}  fxg5 {[%clk 0:01:04]} 35. Nf3 {[%clk 0:01:11]}  gxh4 {[%clk 0:01:00]} 36. Nxh4 {[%clk 0:01:09]}  f4 {[%clk 0:01:01]} 37. Qf3 {[%clk 0:01:02]}  fxg3 {[%clk 0:00:59]} 38. Qxg3 {[%clk 0:01:02]}  Kh8 {[%clk 0:00:58]} 39. Qxb8+ {[%clk 0:01:01]}  Kh7 {[%clk 0:00:49]} 40. Bd3+ {[%clk 0:00:59]} 1-0


[Site "https://www.chess.com"]

[Event "Titled Tuesday Blitz May 9 Early 2023"]
[White "babbilator"]
[Black "Avazkhonov, Alikhon"]
[BlackFideId "14208504"]
[WhiteElo "2259"]
[BlackElo "1739"]
[Result "1-0"]
[Round "02"]
[TimeControl "180+2"]
[Date "2023.05.09"]
[WhiteClock "0:00:19"]
[BlackClock "0:00:01"]

1. e4 {[%clk 0:02:58]}  c5 {[%clk 0:02:59]} 2. Nc3 {[%clk 0:02:58]}  d6 {[%clk 0:02:58]} 3. Nf3 {[%clk 0:02:58]}  Nf6 {[%clk 0:02:58]} 4. e5 {[%clk 0:02:47]}  dxe5 {[%clk 0:02:58]} 5. Nxe5 {[%clk 0:02:48]}  a6 {[%clk 0:02:58]} 6. a4 {[%clk 0:02:47]}  Qd6 {[%clk 0:02:58]} 7. Nc4 {[%clk 0:02:46]}  Qe6+ {[%clk 0:02:57]} 8. Be2 {[%clk 0:02:46]}  Nc6 {[%clk 0:02:57]} 9. O-O {[%clk 0:02:45]}  Nd4 {[%clk 0:02:57]} 10. Bd3 {[%clk 0:02:23]}  g6 {[%clk 0:02:40]} 11. Re1 {[%clk 0:02:19]}  Qc6 {[%clk 0:02:39]} 12. a5 {[%clk 0:02:10]}  Bg4 {[%clk 0:02:20]} 13. f3 {[%clk 0:02:10]}  Bxf3 {[%clk 0:02:14]} 14. gxf3 {[%clk 0:02:10]}  Nxf3+ {[%clk 0:02:14]} 15. Kf1 {[%clk 0:02:05]}  Nxh2+ {[%clk 0:01:51]} 16. Kg1 {[%clk 0:02:04]}  Nf3+ {[%clk 0:01:51]} 17. Kf1 {[%clk 0:02:04]}  Ng4 {[%clk 0:01:49]} 18. Be4 {[%clk 0:02:00]}  Ngh2+ {[%clk 0:00:44]} 19. Kg2 {[%clk 0:01:43]}  Nxe1+ {[%clk 0:00:20]} 20. Qxe1 {[%clk 0:01:44]}  Qc7 {[%clk 0:00:21]} 21. Qg3 {[%clk 0:01:36]}  Qxg3+ {[%clk 0:00:11]} 22. Kxg3 {[%clk 0:01:36]}  Nf1+ {[%clk 0:00:07]} 23. Kg2 {[%clk 0:01:33]}  O-O-O {[%clk 0:00:08]} 24. Kxf1 {[%clk 0:01:29]}  Bg7 {[%clk 0:00:08]} 25. d3 {[%clk 0:01:25]}  e5 {[%clk 0:00:07]} 26. Be3 {[%clk 0:01:19]}  f5 {[%clk 0:00:07]} 27. Bg2 {[%clk 0:01:17]}  e4 {[%clk 0:00:01]} 28. Bxc5 {[%clk 0:01:06]}  exd3 {[%clk 0:00:02]} 29. Nb6+ {[%clk 0:00:57]}  Kb8 {[%clk 0:00:01]} 30. cxd3 {[%clk 0:00:55]}  Rxd3 {[%clk 0:00:02]} 31. Rd1 {[%clk 0:00:44]}  Bd4 {[%clk 0:00:03]} 32. Bd6+ {[%clk 0:00:39]}  Ka7 {[%clk 0:00:03]} 33. Rxd3 {[%clk 0:00:39]}  Bxb6 {[%clk 0:00:03]} 34. axb6+ {[%clk 0:00:38]}  Kxb6 {[%clk 0:00:04]} 35. b4 {[%clk 0:00:32]}  Re8 {[%clk 0:00:03]} 36. Bc5+ {[%clk 0:00:32]}  Kc7 {[%clk 0:00:03]} 37. Nd5+ {[%clk 0:00:30]}  Kb8 {[%clk 0:00:02]} 38. Nb6 {[%clk 0:00:22]}  Re6 {[%clk 0:00:02]} 39. Rd7 {[%clk 0:00:21]}  Rc6 {[%clk 0:00:01]} 40. Bxc6 {[%clk 0:00:19]}  bxc6 {[%clk 0:00:02]} 41. Rxh7 {[%clk 0:00:20]}  a5 {[%clk 0:00:01]} 42. bxa5 {[%clk 0:00:19]} 1-0


[Site "https://www.chess.com"]

[Event "Titled Tuesday Blitz May 9 Early 2023"]
[White "Ljukin, Sergei"]
[Black "Benmesbah, Natacha"]
[WhiteFideId "14102200"]
[BlackFideId "642002"]
[WhiteElo "2312"]
[BlackElo "2263"]
[Result "1-0"]
[Round "02"]
[TimeControl "180+2"]
[Date "2023.05.09"]
[WhiteClock "0:02:04"]
[BlackClock "0:00:22"]

1. e4 {[%clk 0:02:57]}  c5 {[%clk 0:02:53]} 2. Nf3 {[%clk 0:02:56]}  d6 {[%clk 0:02:52]} 3. d4 {[%clk 0:02:57]}  cxd4 {[%clk 0:02:50]} 4. Nxd4 {[%clk 0:02:57]}  Nf6 {[%clk 0:02:49]} 5. Nc3 {[%clk 0:02:58]}  g6 {[%clk 0:02:46]} 6. Be3 {[%clk 0:02:57]}  Bg7 {[%clk 0:02:45]} 7. f3 {[%clk 0:02:57]}  O-O {[%clk 0:02:45]} 8. Qd2 {[%clk 0:02:57]}  Nc6 {[%clk 0:02:45]} 9. O-O-O {[%clk 0:02:57]}  d5 {[%clk 0:02:44]} 10. Kb1 {[%clk 0:02:57]}  e5 {[%clk 0:02:11]} 11. Nxc6 {[%clk 0:02:56]}  bxc6 {[%clk 0:02:10]} 12. exd5 {[%clk 0:02:56]}  cxd5 {[%clk 0:02:06]} 13. Nxd5 {[%clk 0:02:56]}  Nxd5 {[%clk 0:01:24]} 14. Qxd5 {[%clk 0:02:56]}  Be6 {[%clk 0:01:24]} 15. Qxd8 {[%clk 0:02:52]}  Rfxd8 {[%clk 0:01:25]} 16. Rxd8+ {[%clk 0:02:50]}  Rxd8 {[%clk 0:01:24]} 17. Bb5 {[%clk 0:02:38]}  Rb8 {[%clk 0:01:14]} 18. Ba4 {[%clk 0:02:37]}  e4 {[%clk 0:01:12]} 19. Bb3 {[%clk 0:02:36]}  exf3 {[%clk 0:01:08]} 20. gxf3 {[%clk 0:02:36]}  a5 {[%clk 0:01:09]} 21. Bc1 {[%clk 0:02:29]}  Bh3 {[%clk 0:01:00]} 22. Re1 {[%clk 0:02:07]}  Kf8 {[%clk 0:00:55]} 23. Bf4 {[%clk 0:02:06]}  Rb7 {[%clk 0:00:22]} 24. Bd6+ {[%clk 0:02:04]} 1-0


[Site "https://www.chess.com"]

[Event "Titled Tuesday Blitz May 9 Early 2023"]
[White "Srebrnic, Ana"]
[Black "Bethke, Richard"]
[WhiteFideId "14603314"]
[BlackFideId "12959243"]
[WhiteElo "2181"]
[BlackElo "2369"]
[Result "0-1"]
[Round "02"]
[TimeControl "180+2"]
[Date "2023.05.09"]
[WhiteClock "0:00:08"]
[BlackClock "0:01:12"]

1. e4 {[%clk 0:03:00]}  c6 {[%clk 0:02:50]} 2. d4 {[%clk 0:02:59]}  d5 {[%clk 0:02:51]} 3. Nc3 {[%clk 0:02:59]}  dxe4 {[%clk 0:02:51]} 4. Nxe4 {[%clk 0:02:59]}  Nf6 {[%clk 0:02:52]} 5. Nxf6+ {[%clk 0:02:58]}  exf6 {[%clk 0:02:52]} 6. Bc4 {[%clk 0:02:59]}  Bd6 {[%clk 0:02:51]} 7. Qe2+ {[%clk 0:02:59]}  Qe7 {[%clk 0:02:44]} 8. Qxe7+ {[%clk 0:02:57]}  Kxe7 {[%clk 0:02:45]} 9. Nf3 {[%clk 0:02:50]}  Rd8 {[%clk 0:02:44]} 10. c3 {[%clk 0:02:50]}  Kf8 {[%clk 0:02:43]} 11. O-O {[%clk 0:02:49]}  Nd7 {[%clk 0:02:42]} 12. Re1 {[%clk 0:02:38]}  h5 {[%clk 0:02:41]} 13. Bd3 {[%clk 0:02:32]}  c5 {[%clk 0:02:36]} 14. Be3 {[%clk 0:02:29]}  cxd4 {[%clk 0:02:36]} 15. Nxd4 {[%clk 0:02:28]}  Ne5 {[%clk 0:02:35]} 16. Bc2 {[%clk 0:02:26]}  g6 {[%clk 0:02:34]} 17. Nb5 {[%clk 0:02:06]}  Be7 {[%clk 0:02:32]} 18. Nc7 {[%clk 0:01:58]}  Bg4 {[%clk 0:02:30]} 19. Nxa8 {[%clk 0:01:55]}  Rxa8 {[%clk 0:02:31]} 20. f3 {[%clk 0:01:54]}  Be6 {[%clk 0:02:30]} 21. Bb3 {[%clk 0:01:53]}  Nd3 {[%clk 0:02:28]} 22. Re2 {[%clk 0:01:45]}  a5 {[%clk 0:02:23]} 23. Bxe6 {[%clk 0:01:41]}  fxe6 {[%clk 0:02:24]} 24. Rd1 {[%clk 0:01:41]}  Ne5 {[%clk 0:02:24]} 25. Bd4 {[%clk 0:01:39]}  Bd6 {[%clk 0:02:19]} 26. Bxe5 {[%clk 0:01:36]}  Bxe5 {[%clk 0:02:20]} 27. Red2 {[%clk 0:01:36]}  Ke8 {[%clk 0:02:18]} 28. Rd7 {[%clk 0:01:32]}  a4 {[%clk 0:02:18]} 29. Rxb7 {[%clk 0:01:30]}  a3 {[%clk 0:02:17]} 30. bxa3 {[%clk 0:01:15]}  Rxa3 {[%clk 0:02:18]} 31. Rbd7 {[%clk 0:01:07]}  g5 {[%clk 0:02:14]} 32. Rd8+ {[%clk 0:01:05]}  Kf7 {[%clk 0:02:14]} 33. R1d7+ {[%clk 0:01:06]}  Kg6 {[%clk 0:02:14]} 34. g4 {[%clk 0:01:01]}  Rxa2 {[%clk 0:01:59]} 35. gxh5+ {[%clk 0:00:48]}  Kxh5 {[%clk 0:01:47]} 36. Rh8+ {[%clk 0:00:31]}  Kg6 {[%clk 0:01:46]} 37. c4 {[%clk 0:00:29]}  Kf5 {[%clk 0:01:39]} 38. c5 {[%clk 0:00:27]}  Rc2 {[%clk 0:01:38]} 39. Rc8 {[%clk 0:00:18]}  Bxh2+ {[%clk 0:01:36]} 40. Kf1 {[%clk 0:00:18]}  Kf4 {[%clk 0:01:34]} 41. Rd3 {[%clk 0:00:17]}  e5 {[%clk 0:01:25]} 42. c6 {[%clk 0:00:16]}  g4 {[%clk 0:01:25]} 43. fxg4 {[%clk 0:00:16]}  e4 {[%clk 0:01:26]} 44. Rh3 {[%clk 0:00:14]}  e3 {[%clk 0:01:25]} 45. c7 {[%clk 0:00:13]}  Bg3 {[%clk 0:01:12]} 46. Rxg3 {[%clk 0:00:11]}  Kxg3 {[%clk 0:01:12]} 47. Ke1 {[%clk 0:00:09]}  Kf3 {[%clk 0:01:12]} 48. Rf8 {[%clk 0:00:08]}  Rc1# {[%clk 0:01:12]} 0-1


[Site "https://www.chess.com"]

[Event "Titled Tuesday Blitz May 9 Early 2023"]
[White "Levitan, Caleb Levi"]
[Black "Vovk, Orest"]
[WhiteFideId "14332620"]
[BlackFideId "14113490"]
[WhiteElo "1963"]
[BlackElo "2215"]
[Result "1-0"]
[Round "02"]
[TimeControl "180+2"]
[Date "2023.05.09"]
[WhiteClock "0:02:12"]
[BlackClock "0:02:01"]

1. e4 {[%clk 0:03:00]}  g5 {[%clk 0:02:52]} 2. d4 {[%clk 0:02:59]}  g4 {[%clk 0:02:37]} 3. Nc3 {[%clk 0:02:51]}  Bg7 {[%clk 0:02:35]} 4. Be3 {[%clk 0:02:49]}  h5 {[%clk 0:02:24]} 5. Be2 {[%clk 0:02:47]}  d6 {[%clk 0:02:20]} 6. f3 {[%clk 0:02:40]}  Nf6 {[%clk 0:02:14]} 7. fxg4 {[%clk 0:02:32]}  Nxg4 {[%clk 0:02:13]} 8. Bxg4 {[%clk 0:02:26]}  Bxg4 {[%clk 0:02:10]} 9. Nge2 {[%clk 0:02:25]}  c5 {[%clk 0:02:07]} 10. h3 {[%clk 0:02:15]}  cxd4 {[%clk 0:02:01]} 11. Bxd4 {[%clk 0:02:12]} 1-0


[Site "https://www.chess.com"]

[Event "Titled Tuesday Blitz May 9 Early 2023"]
[White "Liu, Casper"]
[Black "Schut, Han"]
[WhiteFideId "1454153"]
[BlackFideId "1005561"]
[WhiteElo "2221"]
[BlackElo "2024"]
[Result "1-0"]
[Round "02"]
[TimeControl "180+2"]
[Date "2023.05.09"]
[WhiteClock "0:00:08"]
[BlackClock "0:00:00"]

1. b3 {[%clk 0:02:56]}  e5 {[%clk 0:02:58]} 2. Bb2 {[%clk 0:02:57]}  Nc6 {[%clk 0:02:58]} 3. g3 {[%clk 0:02:57]}  Bd6 {[%clk 0:02:58]} 4. Bg2 {[%clk 0:02:58]}  Qe7 {[%clk 0:02:59]} 5. d3 {[%clk 0:02:58]}  f5 {[%clk 0:02:58]} 6. Nc3 {[%clk 0:02:54]}  Nf6 {[%clk 0:02:58]} 7. Nd5 {[%clk 0:02:52]}  Nxd5 {[%clk 0:02:57]} 8. Bxd5 {[%clk 0:02:53]}  e4 {[%clk 0:02:49]} 9. dxe4 {[%clk 0:02:48]}  Be5 {[%clk 0:02:40]} 10. Bxe5 {[%clk 0:02:43]}  Qxe5 {[%clk 0:02:40]} 11. Nf3 {[%clk 0:02:41]}  Qc3+ {[%clk 0:02:33]} 12. Kf1 {[%clk 0:02:32]}  Nb4 {[%clk 0:02:23]} 13. Kg2 {[%clk 0:02:26]}  c6 {[%clk 0:02:19]} 14. a3 {[%clk 0:02:07]}  cxd5 {[%clk 0:02:04]} 15. axb4 {[%clk 0:02:06]}  dxe4 {[%clk 0:01:56]} 16. Nd4 {[%clk 0:02:02]}  O-O {[%clk 0:01:44]} 17. Nb5 {[%clk 0:01:54]}  Qe5 {[%clk 0:01:37]} 18. Nxa7 {[%clk 0:01:23]}  f4 {[%clk 0:01:31]} 19. Re1 {[%clk 0:00:47]}  d5 {[%clk 0:01:10]} 20. Nxc8 {[%clk 0:00:39]}  Raxc8 {[%clk 0:01:06]} 21. Ra5 {[%clk 0:00:37]}  Rcd8 {[%clk 0:01:00]} 22. c4 {[%clk 0:00:37]}  f3+ {[%clk 0:00:55]} 23. exf3 {[%clk 0:00:21]}  exf3+ {[%clk 0:00:54]} 24. Kh1 {[%clk 0:00:21]}  Qh5 {[%clk 0:00:32]} 25. Rxd5 {[%clk 0:00:14]}  Qh3 {[%clk 0:00:32]} 26. Rg1 {[%clk 0:00:12]}  Rde8 {[%clk 0:00:28]} 27. Qf1 {[%clk 0:00:12]}  Qg4 {[%clk 0:00:20]} 28. h3 {[%clk 0:00:11]}  Qg6 {[%clk 0:00:19]} 29. Qd3 {[%clk 0:00:11]}  Re2 {[%clk 0:00:18]} 30. Qxg6 {[%clk 0:00:10]}  hxg6 {[%clk 0:00:17]} 31. Rf1 {[%clk 0:00:11]}  Rfe8 {[%clk 0:00:17]} 32. Rd3 {[%clk 0:00:11]}  Rf8 {[%clk 0:00:16]} 33. Kg1 {[%clk 0:00:10]}  g5 {[%clk 0:00:17]} 34. b5 {[%clk 0:00:09]}  b6 {[%clk 0:00:16]} 35. Rfd1 {[%clk 0:00:06]}  Kh7 {[%clk 0:00:14]} 36. Re3 {[%clk 0:00:05]}  Rb2 {[%clk 0:00:02]} 37. Rdd3 {[%clk 0:00:05]}  Rb1+ {[%clk 0:00:02]} 38. Kh2 {[%clk 0:00:06]}  Rf1 {[%clk 0:00:02]} 39. Rxf3 {[%clk 0:00:06]}  Rxf2+ {[%clk 0:00:02]} 40. Rxf2 {[%clk 0:00:07]}  Rxf2+ {[%clk 0:00:03]} 41. Kg1 {[%clk 0:00:08]}  Rb2 {[%clk 0:00:03]} 42. Re3 {[%clk 0:00:04]}  Kg6 {[%clk 0:00:03]} 43. Re6+ {[%clk 0:00:04]}  Kf5 {[%clk 0:00:04]} 44. Rxb6 {[%clk 0:00:05]}  Ke4 {[%clk 0:00:03]} 45. Rb7 {[%clk 0:00:04]}  Kf3 {[%clk 0:00:04]} 46. Rf7+ {[%clk 0:00:02]}  Kxg3 {[%clk 0:00:04]} 47. Kf1 {[%clk 0:00:03]}  Rxb3 {[%clk 0:00:03]} 48. Rxg7 {[%clk 0:00:02]}  Rb1+ {[%clk 0:00:03]} 49. Ke2 {[%clk 0:00:02]}  Rb2+ {[%clk 0:00:04]} 50. Kd3 {[%clk 0:00:03]}  Kf4 {[%clk 0:00:05]} 51. Kd4 {[%clk 0:00:04]}  Rd2+ {[%clk 0:00:05]} 52. Kc5 {[%clk 0:00:04]}  Rh2 {[%clk 0:00:04]} 53. b6 {[%clk 0:00:05]}  Rxh3 {[%clk 0:00:05]} 54. b7 {[%clk 0:00:06]}  Rh8 {[%clk 0:00:05]} 55. Kc6 {[%clk 0:00:06]}  g4 {[%clk 0:00:06]} 56. Kc7 {[%clk 0:00:06]}  g3 {[%clk 0:00:06]} 57. b8=Q {[%clk 0:00:07]}  Rxb8 {[%clk 0:00:00]} 58. Kxb8 {[%clk 0:00:08]} 1-0


[Site "https://www.chess.com"]

[Event "Titled Tuesday Blitz May 9 Early 2023"]
[White "Yosha_Iglesias"]
[Black "Wimalasuriya, Kasun M."]
[BlackFideId "9906789"]
[WhiteElo "2439"]
[BlackElo "2207"]
[Result "0-1"]
[Round "02"]
[TimeControl "180+2"]
[Date "2023.05.09"]
[WhiteClock "0:00:16"]
[BlackClock "0:00:33"]

1. d4 {[%clk 0:03:00]}  Nf6 {[%clk 0:02:56]} 2. Nf3 {[%clk 0:02:59]}  g6 {[%clk 0:02:56]} 3. Nbd2 {[%clk 0:02:58]}  d5 {[%clk 0:02:56]} 4. e3 {[%clk 0:02:58]}  Bg7 {[%clk 0:02:56]} 5. b4 {[%clk 0:02:59]}  O-O {[%clk 0:02:52]} 6. Be2 {[%clk 0:02:53]}  a5 {[%clk 0:02:51]} 7. b5 {[%clk 0:02:53]}  c5 {[%clk 0:02:50]} 8. bxc6 {[%clk 0:02:54]}  bxc6 {[%clk 0:02:50]} 9. Ba3 {[%clk 0:02:43]}  Nbd7 {[%clk 0:02:47]} 10. O-O {[%clk 0:02:12]}  Re8 {[%clk 0:02:43]} 11. c4 {[%clk 0:02:10]}  e5 {[%clk 0:02:42]} 12. cxd5 {[%clk 0:02:06]}  Nxd5 {[%clk 0:02:31]} 13. Qc2 {[%clk 0:01:44]}  Bb7 {[%clk 0:02:03]} 14. Nc4 {[%clk 0:01:36]}  Re6 {[%clk 0:01:41]} 15. Nd6 {[%clk 0:01:22]}  Qc7 {[%clk 0:01:31]} 16. Nxf7 {[%clk 0:01:16]}  h6 {[%clk 0:01:07]} 17. N7xe5 {[%clk 0:01:12]}  Nxe5 {[%clk 0:01:05]} 18. Nxe5 {[%clk 0:01:08]}  Bxe5 {[%clk 0:01:05]} 19. dxe5 {[%clk 0:01:08]}  Qxe5 {[%clk 0:01:06]} 20. Bb2 {[%clk 0:01:04]}  Qg5 {[%clk 0:01:01]} 21. Bc4 {[%clk 0:00:58]}  Rae8 {[%clk 0:00:54]} 22. Rad1 {[%clk 0:00:46]}  R8e7 {[%clk 0:00:49]} 23. Ba1 {[%clk 0:00:42]}  Kh7 {[%clk 0:00:49]} 24. Qb2 {[%clk 0:00:41]}  Kg8 {[%clk 0:00:42]} 25. Qh8+ {[%clk 0:00:36]}  Kf7 {[%clk 0:00:42]} 26. Rd4 {[%clk 0:00:20]}  c5 {[%clk 0:00:37]} 27. Bxd5 {[%clk 0:00:20]}  cxd4 {[%clk 0:00:33]} 28. Bxe6+ {[%clk 0:00:17]}  Kxe6 {[%clk 0:00:33]} 29. Qg7 {[%clk 0:00:16]}  Qxg2# {[%clk 0:00:33]} 0-1


[Site "https://www.chess.com"]

[Event "Titled Tuesday Blitz May 9 Early 2023"]
[White "Yang,ching Wei, Austin"]
[Black "Koutsin"]
[WhiteFideId "16300440"]
[WhiteElo "2101"]
[BlackElo "2437"]
[Result "0-1"]
[Round "02"]
[TimeControl "180+2"]
[Date "2023.05.09"]
[WhiteClock "0:00:00"]
[BlackClock "0:01:17"]

1. e4 {[%clk 0:03:00]}  e6 {[%clk 0:03:00]} 2. d4 {[%clk 0:02:58]}  d5 {[%clk 0:03:00]} 3. e5 {[%clk 0:02:58]}  c5 {[%clk 0:03:00]} 4. c3 {[%clk 0:02:59]}  Nc6 {[%clk 0:02:58]} 5. Nf3 {[%clk 0:03:00]}  Qb6 {[%clk 0:02:57]} 6. Be2 {[%clk 0:02:57]}  Nge7 {[%clk 0:02:56]} 7. Na3 {[%clk 0:02:38]}  cxd4 {[%clk 0:02:54]} 8. cxd4 {[%clk 0:02:38]}  Nf5 {[%clk 0:02:54]} 9. Nc2 {[%clk 0:02:39]}  Bb4+ {[%clk 0:02:55]} 10. Kf1 {[%clk 0:02:39]}  Be7 {[%clk 0:02:54]} 11. h4 {[%clk 0:02:22]}  f6 {[%clk 0:02:41]} 12. g4 {[%clk 0:02:19]}  Nh6 {[%clk 0:02:40]} 13. Bxh6 {[%clk 0:02:18]}  gxh6 {[%clk 0:02:39]} 14. exf6 {[%clk 0:02:05]}  Bxf6 {[%clk 0:02:39]} 15. g5 {[%clk 0:02:05]}  Bg7 {[%clk 0:02:13]} 16. gxh6 {[%clk 0:01:44]}  Bxh6 {[%clk 0:02:11]} 17. Ne5 {[%clk 0:01:45]}  Nxe5 {[%clk 0:02:07]} 18. dxe5 {[%clk 0:01:44]}  O-O {[%clk 0:02:07]} 19. Rg1+ {[%clk 0:01:08]}  Kh8 {[%clk 0:02:05]} 20. Rg2 {[%clk 0:01:09]}  Qxb2 {[%clk 0:01:58]} 21. Nd4 {[%clk 0:00:58]}  Rf4 {[%clk 0:01:57]} 22. Nf3 {[%clk 0:00:45]}  Qb6 {[%clk 0:01:42]} 23. Rb1 {[%clk 0:00:39]}  Qd8 {[%clk 0:01:42]} 24. Qb3 {[%clk 0:00:27]}  Qf8 {[%clk 0:01:42]} 25. Rb2 {[%clk 0:00:20]}  b6 {[%clk 0:01:42]} 26. Rc2 {[%clk 0:00:15]}  Bd7 {[%clk 0:01:39]} 27. Rc7 {[%clk 0:00:14]}  Rd8 {[%clk 0:01:40]} 28. Qc3 {[%clk 0:00:10]}  Rf7 {[%clk 0:01:39]} 29. Ke1 {[%clk 0:00:07]}  Rc8 {[%clk 0:01:35]} 30. Nd4 {[%clk 0:00:05]}  Bf4 {[%clk 0:01:28]} 31. Rxc8 {[%clk 0:00:04]}  Qxc8 {[%clk 0:01:27]} 32. Qxc8+ {[%clk 0:00:04]}  Bxc8 {[%clk 0:01:27]} 33. Bh5 {[%clk 0:00:04]}  Rg7 {[%clk 0:01:26]} 34. Rxg7 {[%clk 0:00:03]}  Kxg7 {[%clk 0:01:26]} 35. Nc6 {[%clk 0:00:04]}  Bd7 {[%clk 0:01:22]} 36. Nxa7 {[%clk 0:00:03]}  Bxe5 {[%clk 0:01:23]} 37. Be2 {[%clk 0:00:03]}  Bf6 {[%clk 0:01:20]} 38. h5 {[%clk 0:00:03]}  Kh6 {[%clk 0:01:19]} 39. Nb5 {[%clk 0:00:02]}  Bxb5 {[%clk 0:01:17]} 40. Bxb5 {[%clk 0:00:02]}  Kxh5 {[%clk 0:01:17]} 41. Ke2 {[%clk 0:00:00]}  Kg5 {[%clk 0:01:17]} 0-1


[Site "https://www.chess.com"]